[Event "10th Amsterdam Science Park 2022"]
[Site "Amsterdam"]
[Date "2022.07.19"]
[Round "2.10"]
[White "Honkoop, Gilian"]
[Black "Kumar, Prajit Sai"]
[Result "1/2-1/2"]
[ECO "D11"]
[WhiteElo "2205"]
[BlackElo "2040"]
[Annotator "TA"]
[PlyCount "112"]
[EventDate "2022.07.18"]
[EventCountry "NED"]
[SourceTitle "playchess.com"]
[Source "ChessBase"]
[SourceQuality "1"]
[TimeControl "5400+30"]

{[%evp 9,112,2,2,0,4,0,18,-8,2,2,0,-24,-7,-14,-18,-18,0,-47,-44,-49,-11,-11,-22,-17,0,-11,0,-47,-31,-64,-62,-166,-141,-133,-118,-121,-125,-160,-158,-164,-165,-165,-148,-162,-168,-162,-162,-162,-162,-162,-162,-162,-162,-162,-136,-182,-72,-118,-72,-72,-72,-72,-72,-72,-72,-72,-72,-72,-72,-72,-72,-72,-72,-72,-72,-72,-72,-72,-72,-72,0,0,0,0,0,0,0,0,0,0,0,0,0,0,0,0,0,0,0,0,0,0,0,0,0]} 1. c4 {[%emt 0:00:02]} c6 {[%emt 0:01:02]} 2. d4 {[%emt 0:00:31]} d5 {[%emt 0:00:28]} 3. Nf3 {[%emt 0:00:04]} Nf6 {[%emt 0:00:08]} 4. Qc2 {[%emt 0:00:12]} g6 {[%emt 0:00:37]} 5. Bf4 {[%emt 0:00:06]} dxc4 {[%emt 0:00:22]} 6. Qxc4 {[%emt 0:00:58] D11: Slav Defence: 3 Nf3 sidelines and 3...Nf6 4 e3 Bg4.} Be6 {[%emt 0:00:34]} 7. Qc1 {[%emt 0:08:41]} Bd5 {[%emt 0:01:09]} 8. Nbd2 {[%emt 0:01:34]} Nbd7 {[%emt 0:04:07][%cal Oc6c5,Bb8d7,Bd7c5,Bc5e4][%mdl 32]} 9. Qc2 {[%emt 0:05:20] Prevents c5. Black must now prevent e4.} Qa5 {[%emt 0:03:01]} 10. a3 {[%emt 0:13:41]} c5 {[%emt 0:00:58] Inhibits b4.} 11. dxc5 {[%emt 0:00:03]} Qxc5 {[%emt 0:00:18]} 12. Qxc5 {[%emt 0:00:09]} Nxc5 {[%emt 0:00:14] [#]} 13. b4 $146 {[%emt 0:03:59]} (13. e4 $11 {feels stronger.} Nfxe4 14. Bb5+ Bc6 15. Nxe4 Nxe4 16. Bxc6+ bxc6 17. O-O) ({Predecessor:} 13. e3 Bg7 14. Bb5+ Nfd7 15. O-O-O a6 16. Bxd7+ Nxd7 17. e4 Ba2 18. Nb1 Rc8+ 19. Nc3 Bxc3 20. bxc3 {0-1 (33) Martinovici,I (2367)-Volkov,S (2572) Sochi 2019}) 13... Nce4 $15 {[%emt 0:15:55]} 14. Be5 {[%emt 0:00:58]} Bg7 {[%emt 0:02:58][%cal Oe4f2] Hoping for ...Nxf2!} 15. Nxe4 {[%emt 0:01:20]} Bxe4 {[%emt 0:01:48]} 16. Nd4 {[%emt 0:03:34]} O-O {[%emt 0:19:29]} 17. f3 {[%emt 0:00:20]} Bc6 {[%emt 0:02:10]} 18. e4 {[%emt 0:06:13]} (18. Nxc6 $11 bxc6 19. e4) 18... Rac8 {[%emt 0:03:07]} 19. b5 {[%emt 0:15:18]} Bd7 {[%emt 0:01:56]} 20. Bd3 {[%emt 0:02:28]} (20. Nb3 $15) 20... Rc5 {[%emt 0:08:02]} 21. f4 {[%emt 0:03:44]} Nh5 {[%emt 0:08:08] aiming for ...f6.} 22. Bxg7 {[%emt 0:00:56]} Kxg7 {[%emt 0:02:14]} 23. O-O {[%emt 0:01:11] [#]} Nxf4 $1 {[%emt 0:03:45][%mdl 512]} 24. Rxf4 {[%emt 0:11:15]} e5 $1 {[%emt 0:00:07][%csl LRd4,LRf4]} 25. Nb3 {[%emt 0:01:14]} Rc3 {[%emt 0:00:13]} 26. Rf3 {[%emt 0:00:35] Strongly threatening Be2.} Rxb3 {[%emt 0:00:14]} 27. Bc4 {[%emt 0:00:02]} Rxf3 {[%emt 0:01:29]} 28. gxf3 $19 {[%emt 0:00:01][%mdl 4096] Endgame KRB-KRB} Rc8 {[%emt 0:03:08]} 29. Rd1 {[%emt 0:00:09]} Bh3 {[%emt 0:01:58]} 30. Bd5 {[%emt 0:00:57]} Rc7 {[%emt 0:00:28]} 31. a4 {[%emt 0:01:01]} Kf6 {[%emt 0:01:35]} 32. a5 {[%emt 0:01:01]} (32. b6 $17 axb6 33. Rb1) 32... Be6 {[%emt 0:01:24]} (32... Rc5 $19 {has better winning chances.} 33. b6 Rxa5 34. bxa7 Be6) 33. Bxe6 $17 {[%emt 0:01:22]} Kxe6 {[%emt 0:00:07] KR-KR} ({Black should try} 33... fxe6 34. b6 axb6 35. axb6 Rc6) 34. Rd8 {[%emt 0:00:02]} Rc5 {[%emt 0:03:15]} 35. Ra8 {[%emt 0:00:04]} Rxb5 {[%emt 0:00:23]} 36. Rxa7 {[%emt 0:00:04]} Kf6 {[%emt 0:06:56]} 37. Kg2 {[%emt 0:00:45]} h5 {[%emt 0:02:34]} 38. Kg3 {[%emt 0:02:04]} Kg5 {[%emt 0:01:22] Threatens to win with ...h4+.} 39. h4+ {[%emt 0:00:07]} Kf6 {[%emt 0:00:48]} 40. a6 {[%emt 0:00:11]} bxa6 {[%emt 0:00:05]} 41. Rxa6+ {[%emt 0:00:06]} Kg7 {[%emt 0:00:00]} 42. Rc6 {[%emt 0:00:00]} Rb7 {[%emt 0:00:00]} 43. Rc5 {[%emt 0:00:00]} Re7 {[%emt 0:00:00]} 44. Ra5 {[%emt 0:00:00]} f5 {[%emt 0:00:00]} (44... Kf6 $17) 45. exf5 $11 {[%emt 0:00:00] The position is equal.} gxf5 {[%emt 0:00:00]} 46. f4 {[%emt 0:00:00]} Kf6 {[%emt 0:00:00]} 47. Ra6+ {[%emt 0:00:00]} Re6 {[%emt 0:00:00]} 48. fxe5+ {[%emt 0:00:00]} Kxe5 {[%emt 0:00:00]} 49. Ra5+ {[%emt 0:00:00]} Ke4 {[%emt 0:00:00]} 50. Ra4+ {[%emt 0:00:00]} Ke3 {[%emt 0:00:00][%cal Of5f4]} 51. Ra3+ {[%emt 0:00:00]} Ke4 {[%emt 0:00:00]} 52. Ra4+ {[%emt 0:00:00]} Ke5 {[%emt 0:00:00]} 53. Ra5+ {[%emt 0:00:00]} Kf6 {[%emt 0:00:00]} 54. Ra4 {[%emt 0:00:00]} Rb6 {[%emt 0:00:00]} 55. Kf4 {[%emt 0:00:00]} Rc6 {[%emt 0:00:00]} 56. Rb4 {[%emt 0:00:00]} Re6 {[%emt 0:09:54] White happily takes the draw.  Weighted Error Value: White=0.07 (flawless) /Black=0.09 (flawless)} 1/2-1/2

[Event "10th Amsterdam Science Park 2022"]
[Site "Amsterdam"]
[Date "2022.07.20"]
[Round "3.1"]
[White "Duchene, Rene"]
[Black "Zwirs, Nico"]
[Result "1/2-1/2"]
[ECO "D30"]
[WhiteElo "2137"]
[BlackElo "2485"]
[Annotator "TA"]
[PlyCount "105"]
[EventDate "2022.07.18"]
[EventCountry "NED"]
[SourceTitle "playchess.com"]
[Source "ChessBase"]
[SourceQuality "1"]
[TimeControl "5400+30"]

{[%evp 15,105,24,24,10,35,19,21,26,31,25,30,42,48,20,27,11,15,0,0,0,0,0,0,0,0,-8,0,-30,92,10,173,167,116,135,167,162,283,66,300,313,312,284,287,284,283,279,328,306,325,316,291,242,303,296,398,393,362,279,335,326,452,408,409,405,398,348,249,285,272,272,272,267,272,269,416,377,437,427,273,0,66,0,0,0,0,0,0,0,0,0,0,0]} 1. Nf3 {[%emt 0:00:08]} d5 {[%emt 0:00:07]} 2. d4 {[%emt 0:00:19]} Nf6 {[%emt 0:00:15]} 3. c4 {[%emt 0:00:04]} e6 {[%emt 0:00:09]} 4. e3 {[%emt 0:00:16]} c6 {[%emt 0:07:33]} 5. Nbd2 {[%emt 0:01:19]} Nbd7 {[%emt 0:06:51]} 6. Bd3 {[%emt 0:00:42]} Be7 {[%emt 0:00:06]} 7. O-O {[%emt 0:00:07]} O-O {[%emt 0:00:04]} 8. b3 {[%emt 0:05:18] is the legacy move (8.e4).} b6 {[%emt 0:00:37]} 9. Bb2 {[%emt 0:00:16] D30: Queen's Gambit Declined: Systems without Nc3.} dxc4 {[%emt 0:00:11]} 10. Nxc4 {[%emt 0:01:25]} c5 {[%emt 0:03:39]} 11. Qe2 {[%emt 0:05:43]} Bb7 {[%emt 0:01:07]} 12. Rfd1 {[%emt 0:00:37]} Qc7 {[%emt 0:00:38]} 13. Rac1 {[%emt 0:06:52]} Rfd8 {[%emt 0:06:32]} 14. Nfe5 {[%emt 0:07:59]} Rac8 {[%emt 0:07:06]} 15. Nxd7 {[%emt 0:05:26]} Nxd7 {[%emt 0:17:28] [#]} 16. dxc5 $146 {[%emt 0:01:58]} ({Predecessor:} 16. e4 cxd4 17. Bxd4 b5 18. Ne3 Qxc1 19. Rxc1 Rxc1+ 20. Nf1 Nc5 21. Bxc5 Bxc5 22. Qb2 {0-1 (51) Roos,T-Feibert,F Wittlich 1983}) 16... Nxc5 {[%emt 0:00:47]} 17. Qg4 {[%emt 1:00:31][%csl Gb2][%cal Rg4g7]} Bf8 {[%emt 0:06:30]} 18. Ne5 {[%emt 0:00:00] Hoping for b4.} Qe7 {[%emt 0:02:42]} 19. Bb1 $40 {[%emt 0:00:00][%mdl 128] White attacks.} g6 {[%emt 0:03:52]} 20. Qf4 {[%emt 0:00:00]} Bg7 {[%emt 0:01:03]} 21. h4 {[%emt 0:00:00]} h6 {[%emt 0:10:12]} (21... f6 $11 22. Nf3 Rxd1+ 23. Rxd1 e5 24. Qc4+ Kh8) 22. Bd4 {[%emt 0:00:00] White is more active.} ({White should try} 22. Rxd8+ $1 $16 Rxd8 23. b4) 22... Nd7 $2 {[%emt 0:05:50]} (22... a5 $11 {and Black has nothing to worry.}) 23. Rxc8 $18 {[%emt 0:00:00]} Rxc8 {[%emt 0:03:31] [#]} 24. Nxf7 {[%emt 0:00:00][%cal Be5f7,Bf7h6,Bh6f5][%mdl 544] aiming for Bxg7.} e5 {[%emt 0:02:17]} (24... g5 25. Qd6) 25. Nxh6+ {[%emt 0:00:00]} Kh7 {[%emt 0:03:27] [#]} (25... Bxh6 $142 26. Qxh6 exd4) 26. Qg3 $2 {[%emt 0:00:00]} Nf8 {[%emt 0:01:07]} (26... Rc6 $14) 27. Nf5 $1 {[%emt 0:00:00]} gxf5 {[%emt 0:01:51]} 28. Bxf5+ {[%emt 0:00:00]} Kh8 {[%emt 0:00:57] Strongly threatening ...Rd8.} 29. Bxc8 {[%emt 0:00:00]} Bxc8 {[%emt 0:00:01]} 30. Bb2 {[%emt 0:00:00]} Bf5 {[%emt 0:01:15]} 31. Qg5 {[%emt 0:00:00]} Qxg5 {[%emt 0:01:29]} 32. hxg5 {[%emt 0:00:00]} Kh7 {[%emt 0:00:39]} 33. f4 {[%emt 0:00:00]} Nd7 {[%emt 0:01:34]} 34. Rd5 {[%emt 0:00:31]} Be6 {[%emt 0:01:49]} 35. Rd6 {[%emt 0:00:10]} Bg4 {[%emt 0:00:01]} 36. g3 {[%emt 0:00:58]} Bf8 {[%emt 0:01:33]} 37. Rc6 {[%emt 0:00:43]} a5 {[%emt 0:02:13]} 38. Kf2 {[%emt 0:00:43]} Nc5 {[%emt 0:01:31]} 39. Bxe5 {[%emt 0:01:36]} Nd3+ {[%emt 0:00:06]} 40. Kf1 {[%emt 0:00:20]} Nxe5 {[%emt 0:00:23]} 41. fxe5 {[%emt 0:00:06]} Bc5 {[%emt 0:00:53]} 42. Kf2 {[%emt 0:02:04][%cal Oa2a3] Inhibits Bf3. a3! is the strong threat.} Kg7 {[%emt 0:00:00]} 43. Rf6 {[%emt 0:00:00]} Bh5 {[%emt 0:00:00]} 44. a3 {[%emt 0:00:00]} Bxa3 {[%emt 0:00:00]} (44... b5 $142 45. Ra6 Bxa3 46. Rxa5 b4 47. Ra7+ Kf8) 45. Rxb6 {[%emt 0:00:00]} Bb4 {[%emt 0:00:00]} 46. Rb7+ {[%emt 0:00:00]} Kg6 {[%emt 0:00:00] [#]} 47. e4 $2 {[%emt 0:00:00]} (47. g4 $1 $18 {[%cal Rg4h5]} Bxg4 48. Kg3) 47... Bc5+ {[%emt 0:00:00]} (47... Kxg5 $11 48. e6 Kf6) 48. Ke1 {[%emt 0:00:00]} (48. Kg2 $14) 48... Bf3 $11 {[%emt 0:00:00] The position is equal.} 49. Kd2 {[%emt 0:00:00] Black must now prevent Kd3.} Bxe4 {[%emt 0:00:00]} 50. Rb5 {[%emt 0:00:00]} Bb4+ {[%emt 0:00:00]} 51. Ke3 {[%emt 0:00:00]} Bc2 {[%emt 0:00:00]} 52. Kd4 {[%emt 0:00:00]} Bxb3 {[%emt 0:00:00]} 53. Rxb4 {[%emt 0:00:00] Blacks defense is rewarded with a draw.  Weighted Error Value: White=0.33/Black=0.42} 1/2-1/2

[Event "10th Amsterdam Science Park 2022"]
[Site "Amsterdam"]
[Date "2022.07.20"]
[Round "3.2"]
[White "Van Delft, Merijn"]
[Black "Baarslag, Ed"]
[Result "1-0"]
[ECO "B12"]
[WhiteElo "2383"]
[BlackElo "2161"]
[Annotator "TA"]
[PlyCount "125"]
[EventDate "2022.07.18"]
[EventCountry "NED"]
[SourceTitle "playchess.com"]
[Source "ChessBase"]
[SourceQuality "1"]
[TimeControl "5400+30"]

{[%evp 9,125,23,23,9,8,12,4,12,27,18,25,10,15,10,13,19,12,11,11,16,21,19,24,20,43,37,43,31,35,26,23,5,37,17,40,0,0,-31,0,-8,25,16,19,0,0,0,0,0,12,18,18,13,69,19,47,19,19,19,19,13,27,9,32,8,27,24,20,25,25,0,0,0,0,0,0,0,0,0,0,0,0,0,0,0,0,0,11,0,0,0,378,362,337,0,175,8,8,8,8,0,8,8,8,8,8,8,8,8,8,8,8,8,8,8,4562,4132,543,461]} 1. e4 {[%emt 0:00:05]} c6 {[%emt 0:00:28]} 2. d4 {[%emt 0:00:10]} d5 {[%emt 0:00:06]} 3. e5 {[%emt 0:00:06]} Bf5 {[%emt 0:00:22]} 4. Nd2 {[%emt 0:00:10]} e6 {[%emt 0:00:21]} 5. Nb3 {[%emt 0:00:11]} a6 {[%emt 0:00:30]} 6. Nf3 {[%emt 0:10:56] B12: Caro-Kann: Advance Variation.} c5 {[%emt 0:00:47]} 7. Nxc5 {[%emt 0:00:58]} Bxc5 {[%emt 0:00:09]} 8. dxc5 {[%emt 0:00:07] The position is equal.} Qa5+ {[%emt 0:00:08]} 9. c3 {[%emt 0:00:34]} Qxc5 {[%emt 0:00:11]} 10. Nd4 {[%emt 0:02:57] Threatens to win with Be3.} Ne7 {[%emt 0:02:21]} 11. Be3 {[%emt 0:02:42]} Qc7 {[%emt 0:00:25]} 12. f4 {[%emt 0:00:42]} Nbc6 {[%emt 0:05:59]} 13. Be2 {[%emt 0:03:16]} Nxd4 {[%emt 0:00:49]} 14. Qxd4 {[%emt 0:01:33]} O-O {[%emt 0:02:56]} 15. O-O {[%emt 0:03:47]} Be4 {[%emt 0:04:03] [#]} 16. Qb6 $146 {[%emt 0:01:30]} ({Predecessor:} 16. Bf3 Nf5 17. Qb6 Rfc8 18. Bxe4 dxe4 19. Qxc7 Rxc7 20. Rae1 h5 21. Bc1 Rc4 22. Re2 {1-0 (74) Ljukin,S (2362)-Mikhailovsky,V (2184) Chess.com INT 2022}) 16... Rfc8 {[%emt 0:03:37]} 17. Qxc7 {[%emt 0:03:16]} Rxc7 {[%emt 0:00:06]} 18. a4 {[%emt 0:00:42]} f6 {[%emt 0:06:43]} 19. exf6 {[%emt 0:04:55]} gxf6 {[%emt 0:00:07]} 20. g4 {[%emt 0:01:30]} Kf7 {[%emt 0:04:03]} 21. Kf2 {[%emt 0:03:35]} Rg8 {[%emt 0:01:56][%cal Oh7h5]} 22. Bb6 {[%emt 0:15:47]} Rcc8 {[%emt 0:04:54]} 23. Ke3 {[%emt 0:03:25]} Rc6 {[%emt 0:15:46]} 24. a5 {[%emt 0:03:17]} Nc8 {[%emt 0:00:50]} 25. Bd4 {[%emt 0:00:21]} Nd6 {[%emt 0:00:23]} 26. Ra4 {[%emt 0:00:54]} h5 {[%emt 0:05:27]} 27. g5 {[%emt 0:04:40]} Nf5+ {[%emt 0:03:18]} ({Resist} 27... fxg5 28. Bxh5+ Ke7 29. fxg5 $16) 28. Kd2 {[%emt 0:01:40]} Nxd4 {[%emt 0:09:14]} 29. Rxd4 {[%emt 0:00:41]} h4 {[%emt 0:03:17]} 30. Rb4 {[%emt 0:01:31]} Rc7 {[%emt 0:00:37]} (30... Rb8 $11) 31. Rb6 {[%emt 0:02:15]} (31. Bg4 $14) 31... Bf5 {[%emt 0:01:26]} 32. Rg1 {[%emt 0:02:10]} fxg5 {[%emt 0:01:12]} 33. fxg5 {[%emt 0:00:36]} Kg6 {[%emt 0:00:37]} 34. Bd3 {[%emt 0:02:13]} Re8 {[%emt 0:02:25]} 35. Rg4 {[%emt 0:01:39]} Rh7 {[%emt 0:01:37]} 36. h3 {[%emt 0:02:21]} Ree7 {[%emt 0:01:31]} 37. Bxf5+ {[%emt 0:05:20]} Kxf5 $11 {[%emt 0:00:09][%mdl 4096] Endgame KRR-KRR} 38. Rbb4 {[%emt 0:00:48] aiming for g6.} e5 {[%emt 0:03:24]} 39. Rb6 {[%emt 0:01:55][%csl Gg5][%cal Rb6f6] [#]} (39. g6 $5 {[%cal Rg6h7]} Rhg7 40. Rg2 $11) 39... Re6 {[%emt 0:02:41] Against Rf6+} 40. g6 {[%emt 0:02:06]} Rg7 {[%emt 0:02:19]} 41. Rxe6 {[%emt 0:01:20]} Kxe6 {[%emt 0:00:20]} 42. Rxh4 {[%emt 0:00:16]} Rxg6 {[%emt 0:03:54] KR-KR} 43. Rb4 {[%emt 0:06:48]} Rg7 {[%emt 0:01:24]} 44. h4 {[%emt 0:00:52]} Kf5 {[%emt 0:05:48]} 45. Ke3 {[%emt 0:02:14]} e4 {[%emt 0:00:00]} 46. h5 {[%emt 0:00:00]} Rg3+ {[%emt 0:00:00]} 47. Kd4 {[%emt 0:00:00]} Rd3+ {[%emt 0:00:00]} 48. Kc5 {[%emt 0:00:00]} e3 {[%emt 0:00:12] White must now prevent ...e2.} 49. Rxb7 {[%emt 0:00:00] Strongly threatening h6.} ({Don't blunder} 49. h6 $2 e2 50. Rxb7 e1=Q $19) 49... Rd2 $2 {[%emt 0:01:40][%mdl 8192]} (49... Kf6 $11 50. Rb8 Kf7 51. Rb7+ Kf6 52. Rb6+ Kf7 53. Rb7+ (53. Rxa6 $2 e2 $19) 53... Kf6) 50. Re7 $18 {[%emt 0:00:00]} Kf4 {[%emt 0:00:22] [#]} 51. h6 $2 {[%emt 0:00:00]} (51. b4 $1 $18 {[%cal Rb4b5]}) 51... Rh2 $2 {[%emt 0:02:22]} (51... Rxb2 $11 {and Black has nothing to worry.} 52. Kxd5 Rd2+ 53. Kc4 Kf3) 52. h7 $2 {[%emt 0:00:00]} (52. Kxd5 $18 {And now c4 would win.} Rxh6 53. c4) 52... Kf3 $1 $11 {[%emt 0:00:15]} 53. Kd4 {[%emt 0:00:00]} Rd2+ $1 {[%emt 0:00:02]} 54. Kc5 {[%emt 0:00:00]} Rh2 {[%emt 0:00:02]} 55. h8=Q {[%emt 0:00:00]} Rxh8 {[%emt 0:00:10]} 56. Kd4 {[%emt 0:00:00]} Rh4+ {[%emt 0:01:33]} 57. Kd3 {[%emt 0:00:00]} Re4 {[%emt 0:01:06]} 58. Rf7+ {[%emt 0:00:00]} Kg4 {[%emt 0:00:15] Hoping for ...e2.} 59. Ke2 {[%emt 0:00:00] Rf6 is the strong threat.} d4 $1 {[%emt 0:01:34]} 60. cxd4 {[%emt 0:00:00]} Rxd4 {[%emt 0:00:02]} 61. Rf6 {[%emt 0:00:51]} Rb4 $2 {[%emt 0:00:48][%mdl 8192]} (61... Ra4 $11) 62. Kxe3 $18 {[%emt 0:00:25]} Rxb2 {[%emt 0:00:28]} 63. Rxa6 {[%emt 0:00:21] Weighted Error Value: White=0.18 (very precise) /Black=0.24 (precise)} 1-0

[Event "10th Amsterdam Science Park 2022"]
[Site "Amsterdam"]
[Date "2022.07.20"]
[Round "3.3"]
[White "Brouwer, Rein"]
[Black "Bosboom, Manuel"]
[Result "0-1"]
[ECO "E94"]
[WhiteElo "2076"]
[BlackElo "2381"]
[Annotator "TA"]
[PlyCount "58"]
[EventDate "2022.07.18"]
[EventCountry "NED"]
[SourceTitle "playchess.com"]
[Source "ChessBase"]
[SourceQuality "1"]
[TimeControl "5400+30"]

{[%evp 16,58,53,47,48,46,40,57,52,0,0,0,0,0,0,-23,-14,-8,7,0,126,133,170,133,140,42,78,0,58,-46,-43,-51,-44,-53,-22,-31,-6,-56,-45,-66,-63,-44,-41,-431,-402]} 1. d4 {[%emt 0:00:04]} Nf6 {[%emt 0:00:24]} 2. c4 {[%emt 0:00:14]} g6 {[%emt 0:01:21]} 3. Nc3 {[%emt 0:00:12]} Bg7 {[%emt 0:00:06]} 4. e4 {[%emt 0:00:13]} d6 {[%emt 0:00:04]} 5. Nf3 {[%emt 0:00:30]} O-O {[%emt 0:02:48]} 6. Be2 {[%emt 0:00:13]} Nbd7 {[%emt 0:04:01]} 7. O-O {[%emt 0:00:11]} e5 {[%emt 0:00:09]} 8. Be3 {[%emt 0:00:29]} exd4 {[%emt 0:00:52]} 9. Nxd4 {[%emt 0:00:12]} ({Much weaker is} 9. Qxd4 Ng4 10. Qd3 Nxe3 11. Qxe3 Re8 $17) ({Don't play} 9. Bxd4 Re8 $11) 9... c6 {[%emt 0:01:33] E94: King's Indian: Classical: 6 Be2 e5 7 0-0: Various Black 7th moves.} 10. f3 {[%emt 0:00:47]} d5 {[%emt 0:05:57]} 11. cxd5 {[%emt 0:09:48]} cxd5 {[%emt 0:00:13] [#] White is slightly better.} 12. Ndb5 $146 {[%emt 0:02:55]} (12. Qe1 $14) ({Predecessor:} 12. exd5 Nb6 13. d6 Qxd6 14. Nb3 Nbd5 15. Bc5 Qe5 16. Nxd5 Nxd5 17. Bxf8 Bxf8 18. Qd2 {½-½ (19) Majzlan,B-Hlas,J Martin 1996}) 12... a6 $11 {[%emt 0:05:45]} 13. Nd6 {[%emt 0:01:44]} dxe4 {[%emt 0:00:16]} 14. fxe4 {[%emt 0:12:35]} Ne5 {[%emt 0:03:17]} 15. Nxc8 {[%emt 0:13:26]} Qxc8 {[%emt 0:04:34]} 16. Qb3 $36 {[%emt 0:02:25][%mdl 2048] White has some pressure.} Nfg4 {[%emt 0:13:02] Pair of Knights!} 17. Bb6 {[%emt 0:02:45]} Nc6 {[%emt 0:23:35] [#]} (17... Nf6 $11 {keeps the balance.}) 18. Nd5 $1 $16 {[%emt 0:14:00]} h5 {[%emt 0:15:37]} 19. h3 {[%emt 0:04:24]} Nge5 {[%emt 0:02:07]} 20. Nc7 {[%emt 0:03:34] Prevents Qe6.} (20. Qe3 $16) 20... Rb8 {[%emt 0:02:25] [#]} 21. Nd5 {[%emt 0:02:28]} ({White should play} 21. Rad1 $1 $16) 21... Qe6 {[%emt 0:00:23]} (21... Ra8 $1 $11) 22. Qe3 {[%emt 0:01:23]} (22. Rad1 $1 $14) 22... Nd7 $15 {[%emt 0:01:26]} 23. Rad1 {[%emt 0:01:41]} Nxb6 {[%emt 0:00:16]} 24. Nxb6 {[%emt 0:00:04]} Ne5 {[%emt 0:03:44] Prevents Bc4.} 25. b3 {[%emt 0:00:34]} Kh7 {[%emt 0:00:30]} 26. Nc4 {[%emt 0:03:00]} (26. Nd5 $11) 26... b5 {[%emt 0:00:38]} 27. Nxe5 {[%emt 0:01:16]} Bxe5 {[%emt 0:00:02][%cal Bg7e5,Be5c7,Bc7b6][%mdl 32]} 28. Rd5 {[%emt 0:03:19]} Bc7 {[%emt 0:01:08] And now ...Bb6 would win.} 29. Bxh5 $2 {[%emt 0:03:26][%mdl 8192]} Bb6 {[%emt 0:00:21] Black used his chance.  Weighted Error Value: White=0.60/Black=0.25 (precise)} 0-1

[Event "10th Amsterdam Science Park 2022"]
[Site "Amsterdam"]
[Date "2022.07.20"]
[Round "3.4"]
[White "Blom, Vincent"]
[Black "De Winter, Arthur"]
[Result "1/2-1/2"]
[ECO "A24"]
[WhiteElo "2325"]
[BlackElo "2150"]
[Annotator "TA"]
[PlyCount "95"]
[EventDate "2022.07.18"]
[EventCountry "NED"]
[SourceTitle "playchess.com"]
[Source "ChessBase"]
[SourceQuality "1"]
[TimeControl "5400+30"]

{[%evp 14,95,14,-27,-30,-24,-29,-29,-18,-33,-29,-37,0,0,0,0,0,-17,35,40,41,45,52,48,53,19,29,-11,-14,-24,0,-107,-97,-222,-212,-270,-281,-356,-356,-332,-330,-308,-221,-215,-33,-41,-39,-28,-35,-35,-58,-20,-20,-32,-8,-39,-20,-74,-74,-74,-74,-74,-72,-193,-221,-152,-123,-88,-8,-8,0,-8,0,-8,0,0,0,0,0,0,0,-8,0,0]} 1. c4 {[%emt 0:03:05]} Nf6 {[%emt 0:00:04]} 2. g3 {[%emt 0:00:17]} g6 {[%emt 0:00:06]} 3. Bg2 {[%emt 0:00:02]} Bg7 {[%emt 0:00:03]} 4. Nc3 {[%emt 0:00:08]} O-O {[%emt 0:00:14]} 5. Nf3 {[%emt 0:00:03]} d6 {[%emt 0:00:13]} 6. O-O {[%emt 0:00:08]} e5 $1 {[%emt 0:00:12] 6...e5 is better than 6...Nc6.} 7. d3 {[%emt 0:00:18]} c6 {[%emt 0:00:42][%cal Bc7c6,Bc6d5][%mdl 32]} 8. c5 {[%emt 0:11:34]} dxc5 {[%emt 0:09:15] A24: English Opening vs King's Indian: Lines without ...Nc6.} 9. Nxe5 {[%emt 0:02:56]} Nd5 {[%emt 0:00:53]} 10. Nxd5 {[%emt 0:04:17]} cxd5 {[%emt 0:00:36] Black has an edge.} 11. d4 {[%emt 0:00:31]} cxd4 {[%emt 0:12:23]} 12. Nd3 {[%emt 0:03:43]} Nc6 {[%emt 0:23:47]} 13. Qb3 {[%emt 0:09:11] [#]} Bg4 $146 {[%emt 0:12:02]} ({Predecessor:} 13... Qe7 14. Re1 Bf5 15. Bxd5 Bxd3 16. Bxc6 Ba6 17. Bb5 Bxb5 18. Qxb5 Rac8 19. Bd2 a6 20. Qd3 h5 21. h4 Qe6 {½-½ (21) Stark,L (2459)-Markus,R (2611) Germany 2013}) 14. Re1 {[%emt 0:04:44]} Re8 {[%emt 0:09:47]} 15. Bxd5 {[%emt 0:21:20]} Na5 {[%emt 0:01:00]} (15... Qd7 $11 16. Nc5 Qe7) 16. Bxf7+ $14 {[%emt 0:00:51]} Kf8 {[%emt 0:00:12]} 17. Qd5 {[%emt 0:01:55]} Qxd5 {[%emt 0:01:07]} 18. Bxd5 {[%emt 0:00:06] Threatens to win with e4.} Rad8 $1 {[%emt 0:00:07]} 19. Bg2 {[%emt 0:13:30]} Bxe2 {[%emt 0:01:34]} 20. Bd2 {[%emt 0:04:07]} Nc4 $36 {[%emt 0:04:33][%mdl 2048] Black is pushing.} 21. Bb4+ {[%emt 0:01:59]} Kg8 {[%emt 0:04:27]} (21... Kf7 $5 {[%cal Re2d3]} 22. b3 Bxd3 23. Rxe8 Rxe8 24. Bd5+ Kf6 25. bxc4 Kf5 $15) 22. Nf4 {[%emt 0:03:27]} (22. Nc5 $11) 22... d3 $17 {[%emt 0:00:27] And now ...a5 would win.} 23. Bf1 {[%emt 0:09:23]} (23. Bxb7 $17 a5 24. Bc3) 23... Bxb2 $19 {[%emt 0:07:12]} 24. Rab1 {[%emt 0:00:45][%cal Rf4e2]} Bxf1 {[%emt 0:01:12]} 25. Kxf1 {[%emt 0:01:40]} Rxe1+ {[%emt 0:05:32]} 26. Kxe1 {[%emt 0:02:05]} g5 {[%emt 0:00:39]} 27. Ng2 {[%emt 0:00:24]} Re8+ {[%emt 0:03:51]} 28. Ne3 {[%emt 0:00:58]} Nxe3 {[%emt 0:01:12]} (28... b5 $19 {Strongly threatening ...a6.} 29. Bd2 Re5) 29. fxe3 $15 {[%emt 0:00:04]} Rxe3+ $19 {[%emt 0:00:03][%mdl 4096] Endgame KRB-KRB} 30. Kd2 {[%emt 0:00:19]} Re2+ {[%emt 0:00:34]} 31. Kxd3 {[%emt 0:00:05]} Rxh2 {[%emt 0:00:02]} 32. Bd2 {[%emt 0:00:12]} Be5 {[%emt 0:01:40]} 33. Rxb7 {[%emt 0:01:38]} Bxg3 {[%emt 0:01:19] With the idea ...g4.} 34. Rxa7 {[%emt 0:01:07]} g4 {[%emt 0:00:00] next ...h5 is good for Black.} 35. Bc3 {[%emt 0:00:17]} (35. a4 $11) 35... h5 $17 {[%emt 0:00:05]} 36. Ke4 {[%emt 0:00:18]} Rc2 {[%emt 0:00:31]} 37. Bd4 {[%emt 0:01:00] [#]} Rc4 $1 {[%emt 0:00:09]} 38. Ra8+ {[%emt 0:00:08]} (38. Rg7+ $17 Kf8 39. Rg5) 38... Kf7 $19 {[%emt 0:00:21] aiming for ...Bf2.} 39. Kd5 {[%emt 0:00:36]} Rc2 {[%emt 0:00:25]} 40. Ke4 {[%emt 0:00:41]} Bf2 {[%emt 0:01:26]} ({Better is} 40... Re2+ $17 41. Kf5 Bf2 42. Ra7+ Kf8 43. Bxf2 Rxf2+ 44. Kg5 Rh2) 41. Ra7+ $1 $11 {[%emt 0:00:00] The position is equal.} Ke8 {[%emt 0:00:00]} 42. Ra8+ {[%emt 0:00:00]} Kf7 {[%emt 0:00:00]} 43. Ra7+ $1 {[%emt 0:00:00]} Kg6 {[%emt 0:00:00] [#] White must now prevent ...Rc4.} 44. Ra6+ {[%emt 0:00:00]} Kh7 {[%emt 0:00:00]} 45. Ra7+ $1 {[%emt 0:00:00]} Kg8 {[%emt 0:00:00]} (45... Kg6 $5 46. Ra6+ Kh7 47. Ra7+ Kh6 48. Ra6+ Kh7 $11) 46. Ra8+ {[%emt 0:00:00]} Kf7 {[%emt 0:00:00]} 47. Ra7+ $1 {[%emt 0:00:00]} Kg8 {[%emt 0:00:00] Hoping for ...Bxd4.} 48. Ra8+ {[%emt 0:00:00] Weighted Error Value: White=0.18 (very precise) /Black=0.20 (precise)} 1/2-1/2